Cogmind - Beta 16 @@@ ROGUE MODE // 2025.11.05 @ 19:40:08 Player: FAQ Result: Self-destructed Performance ------------- Evolutions (5) 2500 Regions Visited (9) 1800 Robots Destroyed (95) 475 Value Destroyed (3088) 3088 Prototype IDs (39) 780 Alien Tech Used (0) 0 Bonus (955) 955 TOTAL SCORE: 9598 Bonus ------- High Alert Combat Kills 148 Follower Combat Kills 7 Entered DSFs 500 Aligned with FarCom 300 Cogmind --------- Core Integrity 824/1000 Matter 22/300 Energy 330/330 System Corruption 0% Temperature Cool (0) Movement Treading (200) Ox1 Location -5/Factory Parts ------- > --- POWER (2) -------- Heavy Ion Engine Light Angular Momentum Engine > --- PROPULSION (5) --- Improved Treads > --- UTILITY (7) ------ Improved Heat Sink Advanced Heat Sink Large Storage Unit Advanced Weight Redist. System Triangulator Kinecellerator > --- WEAPON (3) ------- Magnetic Acceleration Cannon Mass Driver > --- INVENTORY (15) --- Light Angular Momentum Engine Light Angular Momentum Engine Large Storage Unit Triangulator Improved Light Armor Plating Hacking Suite System Shield Heavy Machine Gun Remote Datajack Peak State ------------ > --- POWER ------------ Light Fission Core Light Fission Core > --- PROPULSION ------- Flying Fortress v7 > --- UTILITY ---------- Improved Heat Sink Large Storage Unit Advanced Weight Redist. System Triangulator Improved Utility Shielding Improved Light Armor Plating Improved Light Armor Plating > --- WEAPON ----------- Advanced Beam Cannon Magnetic Acceleration Cannon Grenade Launcher > --- INVENTORY -------- Heavy Ion Engine Light Treads Armored Treads Armored Treads Improved Medium Treads Large Storage Unit Large Matter Pod Triangulator Kinecellerator Improved Light Armor Plating Hacking Suite System Shield Heavy Machine Gun Remote Datajack [Rating: 76] Favorites ----------- Power Heavy Ion Engine Engine Heavy Ion Engine Power Core Light Fission Core Propulsion Light Treads Treads Light Treads Flight Unit Flying Fortress v7 Utility Improved Light Armor Plating Device Tractor Beam Storage Large Storage Unit Protection Improved Light Armor Plating Weapon Advanced Assault Cannon Energy Gun Medium Laser Energy Cannon Advanced Beam Cannon Ballistic Gun Gauss Rifle Ballistic Cannon Advanced Assault Cannon Launcher Grenade Launcher Special Melee Weapon Datajack Build | -11 -10 -10 -10 -9 -8 -7 -7 -6 -5 ------- Run | Yrd Mat Min Exi Min Mat Fac DSF Fac Fac Slots Evolved 10 | . . . . . 4 2 . 2 2 Power 1 | . . . . . . . . 1 . Propulsion 3 | . . . . . 2 . . . 1 Utility 5 | . . . . . 2 2 . . 1 Weapon 1 | . . . . . . . . 1 . Parts Attached 54 | 7 1 1 2 1 11 2 3 14 12 Power 11 | 1 1 . 1 . 2 . . 4 2 Engine 9 | 1 1 . 1 . 2 . . 2 2 Core 2 | . . . . . . . . 2 . Reactor . | . . . . . . . . . . Propulsion 8 | 2 . . . . 1 . . . 5 Treads 7 | 2 . . . . . . . . 5 Leg . | . . . . . . . . . . Wheel . | . . . . . . . . . . Hover . | . . . . . . . . . . Flight 1 | . . . . . 1 . . . . Utility 21 | 2 . 1 . . 5 2 1 7 3 Device 8 | 1 . 1 . . . 1 1 1 3 Storage 4 | 1 . . . . 3 . . . . Processor . | . . . . . . . . . . Hackware . | . . . . . . . . . . Protection 9 | . . . . . 2 1 . 6 . Artifact . | . . . . . . . . . . Weapon 14 | 2 . . 1 1 3 . 2 3 2 Energy Gun 2 | 1 . . . . . . . . 1 Energy Cannon 1 | . . . . . 1 . . . . Ballistic Gun 2 | 1 . . . . 1 . . . . Ballistic Cannon 4 | . . . . . . . 2 1 1 Launcher 4 | . . . . 1 1 . . 2 . Special Weapon . | . . . . . . . . . . Impact Weapon . | . . . . . . . . . . Slashing Weapon . | . . . . . . . . . . Piercing Weapon . | . . . . . . . . . . Special Melee Weapon 1 | . . . 1 . . . . . . Unidentified Prototypes 3 | . 1 . . . 1 . . 1 . Parts Lost 19 | . . 2 . . 1 . . 2 14 Power 2 | . . . . . . . . . 2 Propulsion 7 | . . 1 . . . . . . 6 Utility 5 | . . 1 . . 1 . . . 3 Weapon 5 | . . . . . . . . 2 3 Highest Loss Streak 8 | . . 1 . . 1 . . 1 8 To Critical Strikes . | . . . . . . . . . . Average Backups 9 | . 5 6 5 4 8 12 14 14 10 Power 1 | . 2 3 2 2 1 2 2 1 . Propulsion 1 | . . . . 1 2 3 3 3 1 Utility 3 | . . . . . 1 3 4 6 5 Weapon 2 | . 1 2 2 1 2 4 3 2 1 Tool/Special . | . . . . . . . . . . Unused Backups 10 | . . . . . . . . 2 8 Power 2 | . . . . . . . . . 2 Propulsion . | . . . . . . . . . . Utility 5 | . . . . . . . . 1 4 Weapon 2 | . . . . . . . . 1 1 Tool/Special 1 | . . . . . . . . . 1 Average Slot Usage (%) 76 | . 100 95 72 74 62 59 63 74 81 Engine 8 | . 14 14 14 14 9 7 7 3 6 Core 1 | . . . . . . . . 5 2 Treads 9 | . 28 25 14 14 . . . . 20 Flight 3 | . . . . . 8 7 7 6 1 Device 12 | . 14 12 14 14 4 3 7 13 21 Storage 10 | . 14 14 14 14 12 15 9 6 5 Protection 9 | . . . . . 12 17 15 19 7 Energy Gun 2 | . 14 14 1 . . . . . 2 Energy Cannon 1 | . . . . . . . . 5 1 Ballistic Gun 3 | . 14 14 . . 7 7 1 . . Ballistic Cannon 3 | . . . . . . . 11 9 6 Launcher 3 | . . . . 8 7 . 1 2 1 Special Melee Weapon 2 | . . . 13 8 . . . . . Peak Build Rating 76 | 7 10 10 11 11 50 56 58 74 76 Average Rating 40 | 4 9 9 9 11 47 51 54 66 57 On Entrance 28 | . 7 10 9 11 11 50 53 58 71 Avg Prop Armor Cover (%) . | . . . . . . . . . . Naked Turns . | . . . . . . . . . . Heaviest Build 68 | 15 18 18 17 18 44 51 50 62 68 Greatest Support 125 | 40 40 40 20 20 50 50 59 59 125 Greatest Overweight (x) 1 | . . . . . . 1 . 1 1 Average Overweight (x) . | . . . . . . . . . . Largest Inventory Capacity 15 | 8 8 8 8 8 15 15 15 15 15 Average Capacity 11 | 6 8 8 8 8 11 15 15 15 15 Most Carried 15 | . 7 7 8 8 13 13 15 15 14 Average Carried 10 | . 5 6 7 7 8 12 14 14 10 Final Capacity 15 | 8 8 8 8 8 15 15 15 15 15 Final Carried 15 | . 7 6 8 8 13 13 15 15 9 Class Distribution -------------------- 72% | Mutant 15% | Tank 7% | Bomber Dominant Class ---------------- Mutant | -10/Materials Mutant | -10/Mines Mutant | -10/Exiles Mutant | -9/Mines Mutant | -8/Materials Mutant | -7/Factory Mutant | -7/DSF Tank | -6/Factory Mutant | -5/Factory Resources | -11 -10 -10 -10 -9 -8 -7 -7 -6 -5 ----------- Run | Yrd Mat Min Exi Min Mat Fac DSF Fac Fac Matter Collected 2652 | 258 94 70 . 60 667 . 91 1056 356 Remotely 1610 | 68 94 57 . 60 322 . 91 918 . Salvage Created 2635 | 70 143 142 . 30 932 . 20 786 512 Parts 155 | 3 11 . . 7 56 . . 41 37 Haulers Intercepted 4 | . . . . . 4 . . . . Recyclers Shooed 3 | . . . . . . . . 2 1 Parts Field Recycled . | . . . . . . . . . . Retrieved Matter . | . . . . . . . . . . Parts Self-Destructed . | . . . . . . . . . . Prevented . | . . . . . . . . . . Parts Restored . | . . . . . . . . . . Kills | -11 -10 -10 -10 -9 -8 -7 -7 -6 -5 ------- Run | Yrd Mat Min Exi Min Mat Fac DSF Fac Fac Combat Hostiles Destroyed 70 | . 3 9 . 3 18 . . 23 14 Guns 21 | . 3 9 . . 6 . . . 3 Cannons 23 | . . . . . . . . 18 5 AOE 26 | . . . . 3 12 . . 5 6 Classes Destroyed 15 | 1 3 1 . 1 6 . . 1 2 Worker 9 | . . . . . 4 . . 3 2 Builder 7 | . . . . . 2 . . 2 3 Tunneler 2 | . . . . . . . . . 2 Hauler 4 | . . . . . 4 . . . . Recycler 3 | 1 . . . . 1 . . 1 . Mechanic 1 | . . . . . 1 . . . . Operator 4 | . 1 . . . 2 . . 1 . Watcher 4 | . 1 . . . 1 . . 1 1 Swarmer 21 | . . . . 3 . . . 13 5 Grunt 24 | . 3 . . . 11 . . 4 6 Brawler 1 | . . . . . . . . . 1 Sentry 10 | . . . . . 5 . . 4 1 Hunter 3 | . . . . . 2 . . . 1 Programmer 2 | . . . . . . . . 2 . Assembled 9 | . . 9 . . . . . . . Best Kill Streak 9 | 1 2 9 . 3 7 . . 8 8 Combat Bots Only 9 | . 2 9 . 3 5 . . 5 5 Max Kills in Single Turn 5 | 1 1 1 . 3 2 . . 5 3 Gunslinging . | . . . . . . . . . . Exploded 3 | . . . . 3 2 . . 2 2 Melee . | . . . . . . . . . . Uniques/NPCs Destroyed . | . . . . . . . . . . Combat | -11 -10 -10 -10 -9 -8 -7 -7 -6 -5 -------- Run | Yrd Mat Min Exi Min Mat Fac DSF Fac Fac Hostile Shots Fired 506 | . 19 26 . 8 55 . 26 200 172 Missed 191 | . 4 6 . 4 29 . 12 88 48 Hits 315 | . 15 20 . 4 26 . 14 112 124 Melee 6 | . . 6 . . . . . . . Projectile 309 | . 15 14 . 4 26 . 14 112 124 Critical Strikes 5 | . . . . . 1 . . 2 2 Actively Blocked 1 | . . . . . . . . 1 . Damage Taken 5070 | . 163 394 . 72 476 . 281 1387 2297 Core 420 | . 32 47 . 9 48 . 17 91 176 Absorbed by Shields . | . . . . . . . . . . Redirected to Shielding 196 | . . . . . . . . 94 102 Core Remaining (%) 88 | 100 . . . 64 91 . 97 89 . Volleys Fired 247 | 3 21 20 . 1 79 . 5 71 47 Largest 3 | 2 2 2 . 1 2 . 2 3 3 Hottest 156 | 70 70 70 . 30 60 . 80 142 156 Shots Fired 426 | 6 42 40 . 2 114 . 10 127 85 Gun 181 | 6 42 40 . . 74 . 1 . 18 Cannon 182 | . . . . . . . 8 118 56 Launcher 63 | . . . . 2 40 . 1 9 11 Special . | . . . . . . . . . . Kinetic 275 | 3 21 20 . . 74 . 9 95 53 Thermal 70 | 3 21 20 . . . . . 23 3 Explosive 63 | . . . . 2 40 . 1 9 11 Electromagnetic 18 | . . . . . . . . . 18 Robot Hit Streak 10 | 1 5 7 . . 8 . 7 6 10 Robot Miss Streak 4 | 1 4 3 . 1 3 . 1 4 3 Penetration Max 1 | . . . . . 1 . . . . Secondary Targets 3 | . . 3 . . . . . . . Max Gunslinging Chain 1 | . . 1 . . . . . . . Shots Hit Robots 251 | 3 23 29 4 5 71 . 7 57 52 Core Hits 205 | 2 10 18 . 5 67 . 1 52 50 Critical Kills . | . . . . . . . . . . Critical Parts Destroyed . | . . . . . . . . . . Critical Strikes 9 | . 3 2 . . . . . 3 1 Burn 5 | . 3 2 . . . . . . . Blast 4 | . . . . . . . . 3 1 Melee Attacks 9 | . . . 4 5 . . . . . Impact . | . . . . . . . . . . Slashing . | . . . . . . . . . . Piercing . | . . . . . . . . . . Sneak Attacks 9 | . . . 4 5 . . . . . Combat Hostiles . | . . . . . . . . . . Follow-up Attacks . | . . . . . . . . . . Damage Inflicted 8585 | 37 299 372 . 90 2791 . 204 2409 2383 Guns 1808 | 37 299 372 . . 910 . . . 190 Cannons 2642 | . . . . . . . 204 1422 1016 Explosions 4135 | . . . . 90 1881 . . 987 1177 Melee . | . . . . . . . . . . Ramming . | . . . . . . . . . . Kinetic 3623 | 37 123 197 . . 910 . 204 1176 976 Thermal 1258 | . 176 175 . . 52 . . 629 226 Explosive 3514 | . . . . 90 1829 . . 604 991 Electromagnetic 190 | . . . . . . . . . 190 Impact . | . . . . . . . . . . Slashing . | . . . . . . . . . . Piercing . | . . . . . . . . . . Highest Corruption 3 | . . 3 3 3 . . . . . Average Corruption 3 | . . 3 3 3 . . . . . Corruption Purged . | . . . . . . . . . . Corruption Blocked . | . . . . . . . . . . Effects 9 | . . . 5 4 . . . . . Message Errors 1 | . . . . 1 . . . . . Matter Fused 4 | . . . 2 2 . . . . . Energy Discharges 2 | . . . 2 . . . . . . Data Loss (minor) 1 | . . . 1 . . . . . . Misfires 1 | . . . . 1 . . . . . Overload Shots . | . . . . . . . . . . Overflow Damage 119 | . . . . . 22 . . 97 . Projectiles 20 | . . . . . . . . 20 . Explosions 99 | . . . . . 22 . . 77 . Melee . | . . . . . . . . . . Knockbacks 17 | . . . . . . . . 9 8 Impact . | . . . . . . . . . . Kinetic 15 | . . . . . . . . 9 6 Secondary 2 | . . . . . . . . . 2 Self-Inflicted Damage 225 | . . . . 43 69 . . 16 97 Shots 12 | . . . . 1 4 . . 2 5 Rammed . | . . . . . . . . . . Targets Rammed . | . . . . . . . . . . Kicked . | . . . . . . . . . . Crushed . | . . . . . . . . . . Highest Temperature 403 | 27 204 148 . . 152 . 18 403 46 Average Temperature 83 | 14 62 60 . . 40 . 10 125 17 Received Heat Transfer 1273 | . 90 40 . . 180 . 36 297 630 Effects 6 | . . . . . . . . 6 . Shutdowns 1 | . . . . . . . . 1 . Energy Bleed 1 | . . . . . . . . 1 . Interference 4 | . . . . . . . . 4 . Siege Activations . | . . . . . . . . . . Martial Activations . | . . . . . . . . . . Shielding Activations . | . . . . . . . . . . Robots Disrupted . | . . . . . . . . . . Combat Hostiles . | . . . . . . . . . . Robots Corrupted . | . . . . . . . . . . Combat Hostiles . | . . . . . . . . . . Parts Fried . | . . . . . . . . . . Impact Corruptions . | . . . . . . . . . . Robots Melted . | . . . . . . . . . . Combat Hostiles . | . . . . . . . . . . Parts Melted 1 | . 1 . . . . . . . . Heat Transferred 2424 | . 740 666 . . 50 . . 744 224 Parts Sabotaged . | . . . . . . . . . . Parts Stolen . | . . . . . . . . . . Parts Stripped . | . . . . . . . . . . Power Chain Reactions . | . . . . . . . . . . Alert | -11 -10 -10 -10 -9 -8 -7 -7 -6 -5 ------- Run | Yrd Mat Min Exi Min Mat Fac DSF Fac Fac Maximum Alert Level 2 | . . . . . 2 1 . 2 2 Low Security (%) 46 | 100 100 100 . 100 12 . 100 36 . Level 1 39 | . . . . . 54 100 . 51 76 Level 2 13 | . . . . . 33 . . 11 23 Level 3 . | . . . . . . . . . . Level 4 . | . . . . . . . . . . Level 5 . | . . . . . . . . . . High Security . | . . . . . . . . . . Max Security . | . . . . . . . . . . Peak Influence 667 | 5 48 . . 97 543 227 185 667 583 Initial 315 | . . . . . 15 227 155 96 315 Average 207 | . 12 . . 21 317 222 177 243 384 Influence Increases 2728 | 5 110 . . 128 845 5 30 1025 580 Destroy 0b10 Robot/C 1240 | . 60 . . 80 360 . . 460 280 Destroy 0b10 Robot/NC 170 | 5 10 . . . 75 . . 40 40 Destroy Leader 306 | . 22 . . 10 110 . . 112 52 Allied During Kill 5 | . . . . 5 . . . . . Successful Hack 64 | . 17 . . . 20 5 . 22 . Disable Machine 450 | . . . . 30 60 . 15 270 75 Destroy Structure 433 | . 1 . . 3 205 . . 106 118 Partial Spotted 15 | . . . . . . . . 15 . Lose Combat Pursuer 45 | . . . . . 15 . 15 . 15 Influence Decreases 2219 | 5 110 . . 88 385 283 67 567 714 Entered New Map 782 | . . . . . 25 273 67 89 328 Time Decay 1247 | 5 110 . . 68 350 10 . 458 246 Lost Part 170 | . . . . . 10 . . 20 140 Lost Ally 20 | . . . . 20 . . . . . Squads Dispatched 21 | . 3 . . 1 7 1 2 5 2 Investigation 3 | . . . . . . 1 . 2 . Extermination 2 | . . . . . . . . 2 . Reinforcement 12 | . 3 . . . 4 . 2 1 2 Assault 1 | . . . . 1 . . . . . Garrison 3 | . . . . . 3 . . . . Intercept . | . . . . . . . . . . Searches Triggered . | . . . . . . . . . . Construction Impeded 4 | . . . . . 2 . . . 2 Haulers Reinforced . | . . . . . . . . . . Active Scanning Responses . | . . . . . . . . . . Cargo Convoy Interrupts . | . . . . . . . . . . Stealth | -11 -10 -10 -10 -9 -8 -7 -7 -6 -5 --------- Run | Yrd Mat Min Exi Min Mat Fac DSF Fac Fac Distress Signals 7 | . 2 . . . 3 . . 1 1 Communications Jammed . | . . . . . . . . . . Distress Signals . | . . . . . . . . . . Times Spotted 125 | . 13 16 . 4 36 . 10 28 18 Peak Tracking Total 11 | . 4 11 . 4 5 . 10 6 6 Tactical Retreats 5 | . . 2 . . 1 . 1 . 1 Traps | -11 -10 -10 -10 -9 -8 -7 -7 -6 -5 ------- Run | Yrd Mat Min Exi Min Mat Fac DSF Fac Fac Traps Triggered . | . . . . . . . . . . Indirectly . | . . . . . . . . . . Trap Hack Attempts . | . . . . . . . . . . Triggered . | . . . . . . . . . . Disarmed . | . . . . . . . . . . Reprogrammed 1 | . 1 . . . . . . . . Reused . | . . . . . . . . . . Traps Extracted . | . . . . . . . . . . Installed . | . . . . . . . . . . Triggered . | . . . . . . . . . . Machines | -11 -10 -10 -10 -9 -8 -7 -7 -6 -5 ---------- Run | Yrd Mat Min Exi Min Mat Fac DSF Fac Fac Machines Disabled 30 | . . . . 2 4 . 1 18 5 Max in Single Turn 12 | . . . . 2 2 . 1 12 5 Machines Repaired . | . . . . . . . . . . Machines Dismantled . | . . . . . . . . . . Machines Sabotaged . | . . . . . . . . . . Overloaded Fab Kills . | . . . . . . . . . . Hacking | -11 -10 -10 -10 -9 -8 -7 -7 -6 -5 --------- Run | Yrd Mat Min Exi Min Mat Fac DSF Fac Fac Machines Accessed 18 | . 4 . 1 . 5 1 . 6 1 Terminals 11 | . 4 . . . 3 1 . 3 . Fabricators 2 | . . . . . . . . 2 . Repair Stations . | . . . . . . . . . . Recycling Units . | . . . . . . . . . . Scanalyzers 3 | . . . . . 2 . . . 1 Garrison Access 1 | . . . . . . . . 1 . Total Hacks 41 | . 8 . 1 . 12 3 . 9 8 Successful 26 | . 5 . 1 . 8 1 . 4 7 Failed 14 | . 3 . . . 3 2 . 5 1 Catastrophic 6 | . 3 . . . . . . 3 . Database Lockouts 1 | . . . . . 1 . . . . Manual 1 | . . . 1 . . . . . . Terminals 20 | . 8 . . . 6 3 . 3 . Fabricators 3 | . . . . . . . . 3 . Repair Stations . | . . . . . . . . . . Recycling Units . | . . . . . . . . . . Scanalyzers 14 | . . . . . 6 . . . 8 Garrison Access 3 | . . . . . . . . 3 . Terminal Hacks 13 | . 5 . 1 . 4 1 . 2 . Record 2 | . . . . . 1 . . 1 . Robot Analysis 1 | . . . . . 1 . . . . Prototype ID Bank 1 | . . . . . 1 . . . . Open DSF 2 | . . . . . . 1 . 1 . Alert Level 1 | . . . . . 1 . . . . Reprogram Traps 1 | . 1 . . . . . . . . Maintenance Status 1 | . 1 . . . . . . . . Security Status 1 | . 1 . . . . . . . . Assault Status 1 | . 1 . . . . . . . . Hauler Manifests 1 | . 1 . . . . . . . . Proto ID Catalog 1 | . . . 1 . . . . . . Fabricator Hacks 2 | . . . . . . . . 2 . Load Schematic 1 | . . . . . . . . 1 . Build 1 | . . . . . . . . 1 . Repair Station Hacks . | . . . . . . . . . . Recycling Unit Hacks . | . . . . . . . . . . Scanalyzer 11 | . . . . . 4 . . . 7 Insert Component 1 | . . . . . 1 . . . . Analyze 1 | . . . . . 1 . . . . Retrieve Study 9 | . . . . . 2 . . . 7 Garrison Access Hacks . | . . . . . . . . . . Unauthorized Hacks . | . . . . . . . . . . Terminals . | . . . . . . . . . . Fabricators . | . . . . . . . . . . Repair Stations . | . . . . . . . . . . Recycling Units . | . . . . . . . . . . Scanalyzers . | . . . . . . . . . . Garrison Access . | . . . . . . . . . . Data Cores Recovered 1 | . . . . . . . . 1 . Used . | . . . . . . . . . . Hacking Detections 15 | . 4 . . . 4 1 . 5 1 Full Trace Events 3 | . . . . . . 1 . 2 . Feedback Events . | . . . . . . . . . . Feedback Blocked . | . . . . . . . . . . Robot Schematics Acquired . | . . . . . . . . . . Robots Built . | . . . . . . . . . . Authchips . | . . . . . . . . . . Time . | . . . . . . . . . . Total Robot Build Rating . | . . . . . . . . . . Part Schematics Acquired 1 | . . . . . 1 . . . . Parts Built 2 | . . . . . . . . 2 . Authchips . | . . . . . . . . . . Time 73 | . . . . . . . . 73 . Total Part Build Rating 6 | . . . . . . . . 6 . Part Studies Acquired 8 | . . . . . 1 . . . 7 Parts Repaired . | . . . . . . . . . . Time . | . . . . . . . . . . Parts Recycled . | . . . . . . . . . . Recycled Matter . | . . . . . . . . . . Retrieved Matter . | . . . . . . . . . . Retrieved Components . | . . . . . . . . . . Parts Scanalyzed 1 | . . . . . 1 . . . . Part Schematics Acquired 1 | . . . . . 1 . . . . Parts Damaged . | . . . . . . . . . . Bothacking | -11 -10 -10 -10 -9 -8 -7 -7 -6 -5 ------------ Run | Yrd Mat Min Exi Min Mat Fac DSF Fac Fac Used RIF Installer . | . . . . . . . . . . Robots Hacked 4 | . . . 3 1 . . . . . Non-combat 2 | . . . 2 . . . . . . Combat 2 | . . . 1 1 . . . . . Robot Hacks Applied 4 | . . . 3 1 . . . . . parse_system 4 | . . . 3 1 . . . . . Relay Couplers Released . | . . . . . . . . . . Fabnet Peak Effective % . | . . . . . . . . . . Robots Rewired . | . . . . . . . . . . Allies Hacked . | . . . . . . . . . . Hacks Repelled . | . . . . . . . . . . Allies | -11 -10 -10 -10 -9 -8 -7 -7 -6 -5 -------- Run | Yrd Mat Min Exi Min Mat Fac DSF Fac Fac Total Allies 1 | . . . . 1 . . . . . Largest Group 1 | . . . . 1 . . . . . Highest-Rated Group 31 | . . . . 31 . . . . . Highest-Rated Ally 31 | . . . . 31 . . . . . Total Orders . | . . . . . . . . . . Ally Attacks 1 | . . . . 1 . . . . . Total Damage 22 | . . . . 22 . . . . . Kills 1 | . . . . 1 . . . . . Allies Corrupted . | . . . . . . . . . . Allies Melted . | . . . . . . . . . . Intel | -11 -10 -10 -10 -9 -8 -7 -7 -6 -5 ------- Run | Yrd Mat Min Exi Min Mat Fac DSF Fac Fac Active Infowar (turns) 534 | . . . . . . . . . 534 Triangulation 534 | . . . . . . . . . 534 Robot Analysis Total 1 | . . . . . 1 . . . . Derelict Logs Recovered . | . . . . . . . . . . Drone Launches . | . . . . . . . . . . Drone Recoveries . | . . . . . . . . . . Exploration | -11 -10 -10 -10 -9 -8 -7 -7 -6 -5 ------------- Run | Yrd Mat Min Exi Min Mat Fac DSF Fac Fac Turns Passed 4187 | 87 414 216 441 409 791 38 109 1148 534 Spaces Moved 4075 | 47 214 89 267 243 1025 62 175 1621 332 Core 6 | 6 . . . . . . . . . Treads 1005 | 41 214 89 267 243 . . . . 151 Legs . | . . . . . . . . . . Wheels . | . . . . . . . . . . Hover . | . . . . . . . . . . Flight 3064 | . . . . . 1025 62 175 1621 181 Fastest Speed 50 | 50 160 160 160 160 50 50 50 50 50 Average Speed 78 | 145 160 160 160 160 50 51 50 52 101 Slowest Speed 200 | 160 160 160 160 160 50 150 50 150 200 Overloaded Moves . | . . . . . . . . . . Propulsion Burnouts . | . . . . . . . . . . Robots Hopped 22 | . . . . . 16 . 1 5 . Potential Cave-ins . | . . . . . . . . . . Cave-ins Triggered . | . . . . . . . . . . Exploration Rate (%) 39 | 5 36 21 61 63 63 2 94 38 7 Regions Visited 9 Branch Regions 3 Pre-discovered Areas . | . . . . . . . . . . Known Exits Taken 1 | . . . . . . 1 . . . Unknown Exits Taken 7 | 1 1 1 1 1 1 . . 1 . Scrap Searched 2 | . . . . 2 . . . . . Spaces Dug 8 | . . . . . . . . . 8 Terrain Destroyed 408 | . . . . 3 239 . . 107 59 Melee . | . . . . . . . . . . Projectile 30 | . . . . . . . . 14 16 AOE 378 | . . . . 3 239 . . 93 43 Terrain Rammed . | . . . . . . . . . . Walls Destroyed . | . . . . . . . . . . Machines Disabled . | . . . . . . . . . . Actions | -11 -10 -10 -10 -9 -8 -7 -7 -6 -5 --------- Run | Yrd Mat Min Exi Min Mat Fac DSF Fac Fac Total 4641 | 56 244 123 281 260 1174 67 185 1804 447 Wait 176 | . . 14 . 10 51 . . 56 45 Move 4023 | 46 213 88 266 242 992 61 173 1610 332 Hop 21 | . . . . . 16 . . 5 . Pick Up 37 | . 7 . 1 . 9 1 . 15 4 Fast Attach 31 | 7 1 . . . 6 2 3 9 3 Attach 24 | . . 1 1 1 5 1 . 4 11 Detach 17 | . 1 . 2 1 6 1 3 2 1 Swap 14 | . . . 1 . 4 . . 7 2 Drop 39 | . 1 . 3 . 6 1 1 25 2 Fire 247 | 3 21 20 . 1 79 . 5 71 47 Melee 9 | . . . 4 5 . . . . . Ram . | . . . . . . . . . . Kick . | . . . . . . . . . . Crush . | . . . . . . . . . . Escape Stasis . | . . . . . . . . . . Rewire 3 | . . . 3 . . . . . . Trap . | . . . . . . . . . . Miscellaneous . | . . . . . . . . . . Route ------- -11/Scrapyard -10/Materials (discovered 2 exits: [*Mat] / [*Min]) -10/Mines -10/Exiles -9/Mines -8/Materials -7/Factory -7/DSF -6/Factory (discovered 4 exits: *Fac x3 / [*Low]) -5/Factory History --------- Turn | Location | Event 4 | -11/Scrapyard | Discovered new exit (range 16) 88 | -11/Scrapyard | Entered Materials 311 | -10/Materials | Build established: Mutant 367 | -10/Materials | Discovered new exit (range 16) 468 | -10/Materials | Discovered new exit (range 12) 502 | -10/Materials | Entered Mines 513 | -10/Mines | Met a Derelict bent on vengeance 577 | -10/Mines | Assembled infested the area 582 | -10/Mines | Assisted by a Guerilla fighting off Assembled 701 | -10/Mines | Destroyed 9 combat bots 712 | -10/Mines | Deemed a non-threat by the Exiles lab entrance 712 | -10/Mines | Discovered new exit (range 5) 718 | -10/Mines | Entered Exiles 758 | -10/Exiles | Met 8R-AWN 786 | -10/Exiles | Met EX-HEX 870 | -10/Exiles | Met EX-BIN 891 | -10/Exiles | Aligned with FarCom system 893 | -10/Exiles | Given EX-Vault access code 931 | -10/Exiles | Opened EX-Vault 945 | -10/Exiles | Found Flying Fortress v7 977 | -10/Exiles | Warned to stay clear of 0b10 Research branches 1028 | -10/Exiles | Met EX-DEC 1141 | -10/Exiles | Discovered new exit (range 14) 1159 | -10/Exiles | Left Exiles lab with Flying Fortress v7 1159 | -10/Exiles | Entered Mines 1160 | -9/Mines | Met a Derelict testing a Signal Generator 1212 | -9/Mines | Found a hidden stash of uninstalled traps 1553 | -9/Mines | Discovered new exit (range 9) 1568 | -9/Mines | Entered Materials 1568 | -8/Materials | Evolved 4 slots: Propulsion x2, Utility x2 1851 | -8/Materials | Central database locked down 2086 | -8/Materials | Garrison activated, responded to threat 2352 | -8/Materials | Discovered new exit (range 16) 2359 | -8/Materials | Entered Factory 2359 | -7/Factory | Evolved 2 slots: Utility x2 2397 | -7/Factory | Identified exit to DSF 2397 | -7/Factory | Entered DSF 2412 | -7/DSF | Additional patrols routed to DSF 2498 | -7/DSF | Discovered new exit (range 15) 2506 | -7/DSF | Entered Factory 2506 | -6/Factory | Evolved 2 slots: Power x1, Weapon x1 2687 | -6/Factory | Discovered new exit (range 14) 2705 | -6/Factory | Discovered new exit (range 11) 2714 | -6/Factory | Discovered new exit (range 16) 2877 | -6/Factory | Build established: Bomber 3187 | -6/Factory | Discovered new exit (range 11) 3552 | -6/Factory | Build established: Tank 3641 | -6/Factory | Fabricated Imp. Light Armor Plating? 3654 | -6/Factory | Entered another Factory area 3654 | -5/Factory | Evolved 2 slots: Propulsion x1, Utility x1 3852 | -5/Factory | Lost 4 parts (1p1n1u1w) 4188 | -5/Factory | Self-destructed Last Messages --------------- 04177_ Arm. Treads+ destroyed. 04177_ Imp. Medium Treads+ destroyed. 04178_ R-10 Processor collects Autogun. 04179_ K-01 Serf collects debris. 04179_ U-05 Engineer lays Concrete. 04181_ Grenade Launcher+ destroyed. 04181_ R-10 Processor collects Autogun. 04181_ U-05 Engineer lays Concrete. 04181_ U-05 Engineer builds a Wall. 04183_ U-05 Engineer lays Concrete. 04183_ K-01 Serf collects debris. 04183_ G-50 Soldier knocked back. 04183_ U-05 Engineer lays Concrete. 04184_ U-05 Engineer builds a Wall. 04185_ Imp. Treads+ destroyed. 04185_ Arm. Treads+ destroyed. 04185_ R-10 Processor collects VTOL Module. 04186_ U-05 Engineer lays Concrete. 04187_ K-01 Serf collects debris. 04187_ U-05 Engineer lays Concrete. Map ----- +----------------------------------------------------+ | ???????????????????? ???????????????????????? | | ???????????????????? ???????????????????????? | | ???????????????????? ?????????????????????? | | ???????????????####?# ? ?????????????????? | | ??????????????? ?# #???????????????? | | ############??? ?# #???????????????? | | [ #???" !?# +???????????????? | | #??"" ?# [[[ #???????????????? | | " " " " " #??"" ?# [[[ #???????????????? | | " " " " " # ? ## [[[ #???????????????? | | " " " " " # """ !## #???????????????? | | " " " " " # """ ## #???????????????? | | " " " " " # """ ## <<< +???????????????? | | " " " " " # ## < #???????????????? | | " " " " " # """ ## +???????????????? | | " " " " " # """ #; #???????????????? | | " " " " " # """ ## #???????????????? | | # #u u ###### #???????????????? | | #+#############;# # # #?????????????????? | | R # *= +?????????????????? | | | R # =! #?????????????????? | | = R R #*= #?????????????????? | | # #?????????????????? | | # #?????????????????? | | ##+########### u # ####?????????????????? | | ! #???# @###????????????????????? | | #???# ???????????????????? | | !! #???# % ????????????????? | | !! #???# k ????????????????? | | """ #???# gu % #???????????????? | | """ #???# g m#???????????????? | | """ #???##;######+######### #???????????????? | | #????# % ?##????#???????????????? | | " """ #????# """ """???????????????????????? | | " ! """ #????# ""? ?""???????????????????????? | | """ #????# "?????????????????????????????? | | #????# ??????????????????????????????? | | ##########????? ??????????????????????????????? | | ????????????????" ???????w??????????????????????? | | ?????????????????????????????????????????????????? | | ?????????????????????????????????????????????????? | | ?????????????????????????????????????????????????? | | ?????????????????????????????????????????????????? | | ?????????????????????????????????????????????????? | | ?????????????????????????????????????????????????? | | ?????????????????????????????????????????????????? | | ?????????????????????????????????????????????????? | | ?????????????????????????????????????????????????? | | ?????????????????????????????????????????????????? | | ?????????????????????????????????????????????????? | +----------------------------------------------------+ Best States ------------- Heat Dissipation 73 Energy Generation 31 Energy Capacity 465 Matter Stores 300 Matter Capacity 450 Sight Range 16 Terrain Scan Density 10 Additional Mass Support 9 Armor Coverage 450 Propulsion Shielding 66 Utility Shielding 66 Evasion (%) 60 Recoil Reduction 5 Kinecelleration 30 Authchip Count 1 Item Schematics ----------------- Imp. Light Armor Plating | -8/Materials | Scanalyzed Robot Schematics ------------------ None Fabricated ------------ Imp. Light Armor Plating | x2 | -6/Factory Repaired ---------- Nothing Studied --------- Grenade Launcher | -8/Materials | Hacked Imp. Treads | -5/Factory | Hacked Arm. Treads | -5/Factory | Hacked Lgt. Treads | -5/Factory | Hacked Magnetic Acceleration Cannon | -5/Factory | Hacked Imp. Medium Treads | -5/Factory | Hacked Imp. Arc Projector | -5/Factory | Hacked Lgt. Ion Engine | -5/Factory | Hacked Alien Tech Used ----------------- None Achievements -------------- It Was An Accident, I Swear Maybe Next Time I'll Detach My Launcher Challenges ------------ None Game ------ Seed TripodControlArray Manual? 0 Play Time 00:46:55 Cumulative 29.0 hours Start 2025.11.05 @ 17:44:19 End 2025.11.05 @ 19:40:08 Sessions 3 Manual Loads 0 Difficulty Rogue Special Mode None Game No. 59 Rogue 59 Adventurer 0 Explorer 0 Win Type - Total 0 Types 0/0/0/0/0/0/0/0/0/0 Lore% 16 Gallery% 26 Achievement% 23 Wizard Run 0 Options --------- Layout 0 ASCII 1 Keyboard 1 Movement Numpad Keybinds 0 Fullscreen 1 Font 18/VGA_Max Map View 76x50 Zoom Use 0% Tactical HUD 1 Map Filters NONE Filters NONE Steam 1 RUN: 84908da7-33b7-48ff-b397-f0abf655e349